[Event "*** Titled Tuesday Blitz"]
[Site "Chess.com"]
[Date "2021.03.09"]
[Round "1"]
[White "elegant285"]
[Black "sofaceindisguise"]
[Result "1/2-1/2"]
[WhiteElo "2291"]
[BlackElo "2578"]
[TimeControl "180+1"]
[EndTime "10:07:17 PST"]
[Termination "Game drawn - insufficient material"]

1. d4 {[%clk 0:03:00.9]} 1... Nf6 {[%clk 0:02:59.3]} 2. c4 {[%clk 0:03:00.8]}
2... e6 {[%clk 0:02:59.6]} 3. Nf3 {[%clk 0:03:00.8]} 3... Bb4+ {[%clk
0:02:58.1]} 4. Bd2 {[%clk 0:03:00.7]} 4... Qe7 {[%clk 0:02:58.5]} 5. g3 {[%clk
0:02:59.4]} 5... Nc6 {[%clk 0:02:58.4]} 6. Bg2 {[%clk 0:02:55.7]} 6... Bxd2+
{[%clk 0:02:58.4]} 7. Nbxd2 {[%clk 0:02:56.4]} 7... O-O {[%clk 0:02:57.1]} 8.
O-O {[%clk 0:02:55.5]} 8... d6 {[%clk 0:02:57.4]} 9. e4 {[%clk 0:02:54]} 9... e5
{[%clk 0:02:55.3]} 10. d5 {[%clk 0:02:54.4]} 10... Nb8 {[%clk 0:02:55.2]} 11.
Qc2 {[%clk 0:02:47.4]} 11... a5 {[%clk 0:02:54.6]} 12. Ne1 {[%clk 0:02:44.6]}
12... Na6 {[%clk 0:02:52.8]} 13. Nd3 {[%clk 0:02:44.8]} 13... Nd7 {[%clk
0:02:49.7]} 14. b3 {[%clk 0:02:35]} 14... Ndc5 {[%clk 0:02:49.4]} 15. Nxc5
{[%clk 0:02:30]} 15... Nxc5 {[%clk 0:02:50.3]} 16. a3 {[%clk 0:02:30.8]} 16...
f5 {[%clk 0:02:48.1]} 17. b4 {[%clk 0:02:29.1]} 17... Nxe4 {[%clk 0:02:46.8]}
18. Nxe4 {[%clk 0:02:28]} 18... fxe4 {[%clk 0:02:47.7]} 19. Bxe4 {[%clk
0:02:28.9]} 19... h6 {[%clk 0:02:44.9]} 20. Rac1 {[%clk 0:02:14]} 20... Bh3
{[%clk 0:02:43.2]} 21. Rfe1 {[%clk 0:02:12.9]} 21... axb4 {[%clk 0:02:41.6]} 22.
axb4 {[%clk 0:02:12.8]} 22... Rf6 {[%clk 0:02:38]} 23. c5 {[%clk 0:02:06.7]}
23... Raf8 {[%clk 0:02:37.1]} 24. cxd6 {[%clk 0:01:29.8]} 24... cxd6 {[%clk
0:02:34.7]} 25. f3 {[%clk 0:01:19.2]} 25... Rc8 {[%clk 0:02:24.7]} 26. Qd3
{[%clk 0:01:06.9]} 26... Rff8 {[%clk 0:02:23.1]} 27. Qb5 {[%clk 0:00:58.1]}
27... Rc7 {[%clk 0:02:15.8]} 28. Qe2 {[%clk 0:00:45]} 28... Rfc8 {[%clk
0:02:12.5]} 29. Qd2 {[%clk 0:00:45]} 29... Bd7 {[%clk 0:02:05.4]} 30. Bb1 {[%clk
0:00:42.6]} 30... Be8 {[%clk 0:01:56.8]} 31. Bf5 {[%clk 0:00:42.1]} 31... Rxc1
{[%clk 0:01:50]} 32. Rxc1 {[%clk 0:00:43]} 32... Rc7 {[%clk 0:01:50]} 33. Rc3
{[%clk 0:00:39.5]} 33... Qd8 {[%clk 0:01:32.5]} 34. Qc2 {[%clk 0:00:37.8]} 34...
Rxc3 {[%clk 0:01:31.2]} 35. Qxc3 {[%clk 0:00:38.7]} 35... Qb6+ {[%clk
0:01:31.4]} 36. Kg2 {[%clk 0:00:39.3]} 36... Kf8 {[%clk 0:01:31.1]} 37. Bc2
{[%clk 0:00:38.3]} 37... Qd4 {[%clk 0:01:27.5]} 38. Qxd4 {[%clk 0:00:37.2]}
38... exd4 {[%clk 0:01:28.4]} 39. Bd3 {[%clk 0:00:36.5]} 39... Ba4 {[%clk
0:01:26.4]} 40. Kf2 {[%clk 0:00:34.9]} 40... Bb3 {[%clk 0:01:24.9]} 41. Be4
{[%clk 0:00:35.5]} 41... Bc4 {[%clk 0:01:25.2]} 42. Ke1 {[%clk 0:00:35.7]} 42...
Ke7 {[%clk 0:01:24.6]} 43. f4 {[%clk 0:00:35.2]} 43... Kd8 {[%clk 0:01:23]} 44.
Kd2 {[%clk 0:00:32.6]} 44... Kc7 {[%clk 0:01:23]} 45. Bd3 {[%clk 0:00:29.5]}
45... Bxd5 {[%clk 0:01:21]} 46. Be2 {[%clk 0:00:21]} 46... Be4 {[%clk
0:01:19.9]} 47. Bc4 {[%clk 0:00:20.1]} 47... d5 {[%clk 0:01:19.9]} 48. Be2
{[%clk 0:00:20.5]} 48... Kb6 {[%clk 0:01:19.1]} 49. Bf1 {[%clk 0:00:20.3]} 49...
Kc6 {[%clk 0:01:18.3]} 50. Be2 {[%clk 0:00:20.5]} 50... d3 {[%clk 0:01:17.1]}
51. Bxd3 {[%clk 0:00:19.2]} 51... Bxd3 {[%clk 0:01:18]} 52. Kxd3 {[%clk
0:00:20.1]} 52... Kb5 {[%clk 0:01:18.9]} 53. Kc3 {[%clk 0:00:20.6]} 53... d4+
{[%clk 0:01:17.4]} 54. Kxd4 {[%clk 0:00:20.7]} 54... Kxb4 {[%clk 0:01:18.3]} 55.
g4 {[%clk 0:00:21]} 55... Ka4 {[%clk 0:01:16.6]} 56. h4 {[%clk 0:00:20.9]} 56...
b5 {[%clk 0:01:16.8]} 57. g5 {[%clk 0:00:17.3]} 57... hxg5 {[%clk 0:01:16.9]}
58. hxg5 {[%clk 0:00:18.2]} 58... b4 {[%clk 0:01:16.9]} 59. f5 {[%clk
0:00:19.1]} 59... b3 {[%clk 0:01:15.7]} 60. f6 {[%clk 0:00:18.1]} 60... gxf6
{[%clk 0:01:15.7]} 61. gxf6 {[%clk 0:00:19]} 61... b2 {[%clk 0:01:15.2]} 62. f7
{[%clk 0:00:18.8]} 62... b1=Q {[%clk 0:01:15.5]} 63. f8=Q {[%clk 0:00:19.2]}
63... Qd1+ {[%clk 0:01:16.4]} 64. Ke5 {[%clk 0:00:18.8]} 64... Qe2+ {[%clk
0:01:16.5]} 65. Kf6 {[%clk 0:00:19]} 65... Qf3+ {[%clk 0:01:16.8]} 66. Ke7
{[%clk 0:00:19.4]} 66... Qxf8+ {[%clk 0:01:17.3]} 67. Kxf8 {[%clk 0:00:20.3]}
1/2-1/2

[Event "*** Titled Tuesday Blitz"]
[Site "Chess.com"]
[Date "2021.03.09"]
[Round "1"]
[White "ChrisTool2"]
[Black "tlomigtlis"]
[Result "1-0"]
[WhiteElo "2330"]
[BlackElo "2598"]
[TimeControl "180+1"]
[EndTime "10:07:18 PST"]
[Termination "ChrisTool2 won by checkmate"]

1. d4 {[%clk 0:02:59.8]} 1... Nf6 {[%clk 0:02:57.5]} 2. c4 {[%clk 0:02:59.4]}
2... g6 {[%clk 0:02:57.4]} 3. f3 {[%clk 0:02:59.8]} 3... d5 {[%clk 0:02:55.2]}
4. cxd5 {[%clk 0:03:00.7]} 4... Nxd5 {[%clk 0:02:55.8]} 5. e4 {[%clk 0:03:01]}
5... Nb6 {[%clk 0:02:55.9]} 6. Nc3 {[%clk 0:03:01.5]} 6... Bg7 {[%clk
0:02:56.1]} 7. Be3 {[%clk 0:03:02]} 7... O-O {[%clk 0:02:56.1]} 8. Qd2 {[%clk
0:03:02.1]} 8... Nc6 {[%clk 0:02:54.6]} 9. O-O-O {[%clk 0:03:02.7]} 9... e5
{[%clk 0:02:54.1]} 10. d5 {[%clk 0:03:00]} 10... Nd4 {[%clk 0:02:54]} 11. f4
{[%clk 0:02:57.5]} 11... Bg4 {[%clk 0:02:48.8]} 12. Re1 {[%clk 0:02:46.2]} 12...
c5 {[%clk 0:02:45.4]} 13. h3 {[%clk 0:02:40.3]} 13... Bd7 {[%clk 0:02:44.1]} 14.
Nf3 {[%clk 0:02:36.5]} 14... exf4 {[%clk 0:02:35.2]} 15. Bxf4 {[%clk 0:02:27.6]}
15... Nxf3 {[%clk 0:02:32.3]} 16. gxf3 {[%clk 0:02:27.2]} 16... Na4 {[%clk
0:02:31.5]} 17. Nxa4 {[%clk 0:02:12.9]} 17... Bxa4 {[%clk 0:02:32.4]} 18. h4
{[%clk 0:02:08.6]} 18... c4 {[%clk 0:02:27.7]} 19. Kb1 {[%clk 0:01:43.8]} 19...
Qb6 {[%clk 0:02:25.1]} 20. e5 {[%clk 0:01:23.8]} 20... Rac8 {[%clk 0:02:21]} 21.
Rc1 {[%clk 0:01:14.6]} 21... Bb5 {[%clk 0:02:08.4]} 22. h5 {[%clk 0:01:09]}
22... Rfd8 {[%clk 0:02:07.9]} 23. hxg6 {[%clk 0:01:08]} 23... hxg6 {[%clk
0:02:08.8]} 24. Qh2 {[%clk 0:00:51]} 24... Qd4 {[%clk 0:01:54.2]} 25. Qh7+
{[%clk 0:00:43]} 25... Kf8 {[%clk 0:01:53.9]} 26. Bh6 {[%clk 0:00:43.9]} 26...
Qxe5 {[%clk 0:01:53.5]} 27. Qh8+ {[%clk 0:00:43.6]} 27... Ke7 {[%clk 0:01:51.3]}
28. Qxg7 {[%clk 0:00:44]} 28... Qxg7 {[%clk 0:01:40.2]} 29. Bxg7 {[%clk
0:00:44.9]} 29... Rxd5 {[%clk 0:01:40.3]} 30. Bh3 {[%clk 0:00:41.9]} 30... Rg8
{[%clk 0:01:24.2]} 31. Rhe1+ {[%clk 0:00:40.1]} 31... Kd6 {[%clk 0:01:24.4]} 32.
Bf6 {[%clk 0:00:38.6]} 32... Bd7 {[%clk 0:01:18.3]} 33. Bxd7 {[%clk 0:00:36.6]}
33... Kxd7 {[%clk 0:01:19.1]} 34. Re7+ {[%clk 0:00:35.1]} 34... Kc6 {[%clk
0:01:18.3]} 35. Rxc4+ {[%clk 0:00:35]} 35... Rc5 {[%clk 0:01:18.2]} 36. Rxc5+
{[%clk 0:00:32.4]} 36... Kxc5 {[%clk 0:01:19.1]} 37. Rxb7 {[%clk 0:00:29.8]}
37... Re8 {[%clk 0:01:19.2]} 38. Rxf7 {[%clk 0:00:24.3]} 38... Re1+ {[%clk
0:01:17.3]} 39. Kc2 {[%clk 0:00:24.4]} 39... Re2+ {[%clk 0:01:18.2]} 40. Kd3
{[%clk 0:00:24.5]} 40... Re1 {[%clk 0:01:10.5]} 41. Bc3 {[%clk 0:00:22.1]} 41...
Rd1+ {[%clk 0:01:10.1]} 42. Kc2 {[%clk 0:00:22.1]} 42... Rf1 {[%clk 0:01:10]}
43. Rxa7 {[%clk 0:00:19.9]} 43... Rxf3 {[%clk 0:01:09.9]} 44. Kb3 {[%clk
0:00:20.5]} 44... g5 {[%clk 0:01:08.5]} 45. Ra5+ {[%clk 0:00:20.5]} 45... Kb6
{[%clk 0:01:08.1]} 46. Rxg5 {[%clk 0:00:21.4]} 46... Re3 {[%clk 0:01:08]} 47.
Kc4 {[%clk 0:00:19.8]} 47... Re4+ {[%clk 0:01:07.8]} 48. Bd4+ {[%clk 0:00:20]}
48... Ka6 {[%clk 0:01:08]} 49. b4 {[%clk 0:00:19.2]} 49... Rh4 {[%clk
0:01:06.8]} 50. Rg6+ {[%clk 0:00:18.8]} 50... Kb7 {[%clk 0:01:06.6]} 51. a4
{[%clk 0:00:19.3]} 51... Rh5 {[%clk 0:01:06.5]} 52. Bc5 {[%clk 0:00:19]} 52...
Rh1 {[%clk 0:01:07.4]} 53. Kb5 {[%clk 0:00:19.2]} 53... Rh7 {[%clk 0:01:07.2]}
54. a5 {[%clk 0:00:18.5]} 54... Rf7 {[%clk 0:01:07.8]} 55. a6+ {[%clk
0:00:18.7]} 55... Kc7 {[%clk 0:01:08.2]} 56. Bd4 {[%clk 0:00:15.6]} 56... Kb8
{[%clk 0:01:08]} 57. Rg8+ {[%clk 0:00:14.6]} 57... Kc7 {[%clk 0:01:08.2]} 58.
Rg7 {[%clk 0:00:15]} 58... Rxg7 {[%clk 0:01:06.3]} 59. Bxg7 {[%clk 0:00:15.9]}
59... Kb8 {[%clk 0:01:06.8]} 60. Kb6 {[%clk 0:00:15.4]} 60... Ka8 {[%clk
0:01:07.3]} 61. b5 {[%clk 0:00:13.6]} 61... Kb8 {[%clk 0:01:07.7]} 62. Ka5
{[%clk 0:00:13]} 62... Ka8 {[%clk 0:01:08.6]} 63. b6 {[%clk 0:00:12.2]} 63...
Kb8 {[%clk 0:01:09.5]} 64. Be5+ {[%clk 0:00:11.3]} 64... Kc8 {[%clk 0:01:09.6]}
65. b7+ {[%clk 0:00:10.9]} 65... Kd7 {[%clk 0:01:10.5]} 66. b8=Q {[%clk
0:00:11.1]} 66... Ke6 {[%clk 0:01:11.4]} 67. Qd6+ {[%clk 0:00:11.4]} 67... Kf5
{[%clk 0:01:12.3]} 68. Kb5 {[%clk 0:00:11.2]} 68... Ke4 {[%clk 0:01:13.2]} 69.
Kc4 {[%clk 0:00:11.6]} 69... Kf3 {[%clk 0:01:14.1]} 70. Qd4 {[%clk 0:00:11.8]}
70... Ke2 {[%clk 0:01:13.9]} 71. Bc7 {[%clk 0:00:12.3]} 71... Kf1 {[%clk
0:01:14.3]} 72. Qd2 {[%clk 0:00:12]} 72... Kg1 {[%clk 0:01:14.2]} 73. Kd3 {[%clk
0:00:12.5]} 73... Kf1 {[%clk 0:01:14]} 74. Ke3 {[%clk 0:00:12.8]} 74... Kg1
{[%clk 0:01:14.3]} 75. Kf3 {[%clk 0:00:12.9]} 75... Kh1 {[%clk 0:01:15.2]} 76.
Qg2# {[%clk 0:00:12.8]} 1-0

[Event "*** Titled Tuesday Blitz"]
[Site "Chess.com"]
[Date "2021.03.09"]
[Round "1"]
[White "schondeln"]
[Black "BahadirOzen"]
[Result "0-1"]
[WhiteElo "2407"]
[BlackElo "2763"]
[TimeControl "180+1"]
[EndTime "10:07:19 PST"]
[Termination "BahadirOzen won by resignation"]

1. e4 {[%clk 0:02:59.6]} 1... g6 {[%clk 0:02:58.6]} 2. d4 {[%clk 0:02:59.2]}
2... Bg7 {[%clk 0:02:59.1]} 3. Nc3 {[%clk 0:02:59.7]} 3... d6 {[%clk 0:02:59.3]}
4. Be3 {[%clk 0:02:59.6]} 4... a6 {[%clk 0:02:59.1]} 5. Qd2 {[%clk 0:02:59.5]}
5... b5 {[%clk 0:02:59.5]} 6. f3 {[%clk 0:02:59.6]} 6... Nd7 {[%clk 0:02:59.9]}
7. h4 {[%clk 0:02:58.3]} 7... h6 {[%clk 0:03:00]} 8. Bd3 {[%clk 0:02:54.2]} 8...
Bb7 {[%clk 0:03:00.1]} 9. Nge2 {[%clk 0:02:52.6]} 9... Ngf6 {[%clk 0:02:59.2]}
10. a4 {[%clk 0:02:47]} 10... b4 {[%clk 0:02:58.6]} 11. Nd1 {[%clk 0:02:46.9]}
11... c5 {[%clk 0:02:37.8]} 12. dxc5 {[%clk 0:02:45.3]} 12... dxc5 {[%clk
0:02:35.6]} 13. Bc4 {[%clk 0:02:28.6]} 13... Qc7 {[%clk 0:02:31.6]} 14. Nf2
{[%clk 0:02:20]} 14... Ne5 {[%clk 0:02:27.7]} 15. Ba2 {[%clk 0:02:19.3]} 15...
Rd8 {[%clk 0:02:21.1]} 16. Qc1 {[%clk 0:02:18.4]} 16... e6 {[%clk 0:02:04.7]}
17. O-O {[%clk 0:02:16.8]} 17... a5 {[%clk 0:01:48.8]} 18. Rd1 {[%clk 0:02:16]}
18... Rxd1+ {[%clk 0:01:45.4]} 19. Qxd1 {[%clk 0:02:15.7]} 19... O-O {[%clk
0:01:45.8]} 20. Qe1 {[%clk 0:02:05.7]} 20... Ba6 {[%clk 0:01:24.9]} 21. Rd1
{[%clk 0:02:04.6]} 21... Nc4 {[%clk 0:01:24.9]} 22. Bxc4 {[%clk 0:02:03]} 22...
Bxc4 {[%clk 0:01:24.7]} 23. b3 {[%clk 0:02:03.2]} 23... Ba6 {[%clk 0:01:24.7]}
24. Bf4 {[%clk 0:01:57.5]} 24... e5 {[%clk 0:01:16.7]} 25. Be3 {[%clk
0:01:53.6]} 25... c4 {[%clk 0:01:16.8]} 26. Qd2 {[%clk 0:01:53.6]} 26... cxb3
{[%clk 0:01:14.5]} 27. cxb3 {[%clk 0:01:53.7]} 27... Rc8 {[%clk 0:01:15]} 28.
Nc1 {[%clk 0:01:46.2]} 28... Kh7 {[%clk 0:01:09.4]} 29. Nfd3 {[%clk 0:01:44.9]}
29... Rd8 {[%clk 0:01:04.8]} 30. Qe1 {[%clk 0:01:43.1]} 30... Nd7 {[%clk
0:01:00.8]} 31. Nb2 {[%clk 0:01:39.5]} 31... Bf8 {[%clk 0:00:56.9]} 32. Ncd3
{[%clk 0:01:38.3]} 32... Nc5 {[%clk 0:00:55]} 33. Rc1 {[%clk 0:01:29.7]} 33...
Nxd3 {[%clk 0:00:54.1]} 34. Nxd3 {[%clk 0:01:29.4]} 34... Qe7 {[%clk 0:00:44.2]}
35. Bc5 {[%clk 0:01:20.7]} 35... Qf6 {[%clk 0:00:38.5]} 36. Bxf8 {[%clk
0:01:20.4]} 36... Rxf8 {[%clk 0:00:39.4]} 37. Nc5 {[%clk 0:01:19.7]} 37... Bc8
{[%clk 0:00:39.1]} 38. Rd1 {[%clk 0:01:15.6]} 38... Kg7 {[%clk 0:00:34.3]} 39.
Qf2 {[%clk 0:01:14.7]} 39... Re8 {[%clk 0:00:32.8]} 40. h5 {[%clk 0:01:08.6]}
40... gxh5 {[%clk 0:00:31.6]} 41. Qg3+ {[%clk 0:01:05.3]} 41... Kh7 {[%clk
0:00:27.4]} 42. Kh2 {[%clk 0:01:04.8]} 42... Rg8 {[%clk 0:00:26.9]} 43. Qf2
{[%clk 0:01:04.6]} 43... Qf4+ {[%clk 0:00:26.6]} 44. Kh1 {[%clk 0:01:03.9]}
44... h4 {[%clk 0:00:26.9]} 45. Nd3 {[%clk 0:01:03.6]} 45... Qf6 {[%clk
0:00:26.4]} 46. Ne1 {[%clk 0:00:59.2]} 46... h3 {[%clk 0:00:26]} 47. g3 {[%clk
0:00:59.4]} 47... Be6 {[%clk 0:00:25.3]} 48. Kh2 {[%clk 0:00:58.2]} 48... Bxb3
{[%clk 0:00:25]} 49. Rd7 {[%clk 0:00:55.6]} 49... Be6 {[%clk 0:00:25.3]} 50. Ra7
{[%clk 0:00:55.7]} 50... b3 {[%clk 0:00:25.6]} 51. Rxa5 {[%clk 0:00:55]} 51...
Qd8 {[%clk 0:00:24.8]} 52. Rb5 {[%clk 0:00:54.8]} 52... Qd7 {[%clk 0:00:24.5]}
53. f4 {[%clk 0:00:53.1]} 53... exf4 {[%clk 0:00:24.4]} 54. Qxf4 {[%clk
0:00:52.4]} 54... Qd1 {[%clk 0:00:21.2]} 55. Qe3 {[%clk 0:00:47]} 55... Rd8
{[%clk 0:00:20]} 56. Rd5 {[%clk 0:00:45.5]} 56... Bxd5 {[%clk 0:00:19.2]} 57.
exd5 {[%clk 0:00:45.7]} 57... Qxd5 {[%clk 0:00:19.6]} 58. a5 {[%clk 0:00:44]}
58... Qd2+ {[%clk 0:00:19.5]} 59. Qxd2 {[%clk 0:00:43.7]} 59... Rxd2+ {[%clk
0:00:20.4]} 60. Kxh3 {[%clk 0:00:44.2]} 60... Ra2 {[%clk 0:00:20.8]} 0-1

[Event "*** Titled Tuesday Blitz"]
[Site "Chess.com"]
[Date "2021.03.09"]
[Round "1"]
[White "attack2mateU"]
[Black "JimmmyZhang"]
[Result "1/2-1/2"]
[WhiteElo "2725"]
[BlackElo "2408"]
[TimeControl "180+1"]
[EndTime "10:07:19 PST"]
[Termination "Game drawn by repetition"]

1. e4 {[%clk 0:03:00.9]} 1... e5 {[%clk 0:02:56.9]} 2. Nf3 {[%clk 0:03:01.1]}
2... Nc6 {[%clk 0:02:55.8]} 3. Bc4 {[%clk 0:03:01.6]} 3... Be7 {[%clk
0:02:55.2]} 4. O-O {[%clk 0:03:01.2]} 4... Nf6 {[%clk 0:02:54.8]} 5. Re1 {[%clk
0:03:00.8]} 5... O-O {[%clk 0:02:54.6]} 6. c3 {[%clk 0:03:00.4]} 6... d6 {[%clk
0:02:54]} 7. h3 {[%clk 0:02:59.9]} 7... a6 {[%clk 0:02:52.3]} 8. d4 {[%clk
0:02:59.8]} 8... b5 {[%clk 0:02:52.8]} 9. Bb3 {[%clk 0:02:57.5]} 9... exd4
{[%clk 0:02:51.1]} 10. cxd4 {[%clk 0:02:57.6]} 10... Na5 {[%clk 0:02:44.9]} 11.
Bc2 {[%clk 0:02:56.8]} 11... c5 {[%clk 0:02:33.9]} 12. dxc5 {[%clk 0:02:40.3]}
12... dxc5 {[%clk 0:02:33.1]} 13. e5 {[%clk 0:02:41.2]} 13... Nd5 {[%clk
0:02:30.4]} 14. Qd3 {[%clk 0:02:40.4]} 14... g6 {[%clk 0:02:27]} 15. Qe2 {[%clk
0:02:33.6]} 15... Be6 {[%clk 0:02:20.8]} 16. Bh6 {[%clk 0:02:32.6]} 16... Re8
{[%clk 0:02:13.1]} 17. Nbd2 {[%clk 0:02:32.4]} 17... Qc7 {[%clk 0:02:03.1]} 18.
Rad1 {[%clk 0:02:24.6]} 18... Rad8 {[%clk 0:02:02.4]} 19. Bb1 {[%clk 0:02:22.5]}
19... c4 {[%clk 0:01:53.5]} 20. Ne4 {[%clk 0:02:22.5]} 20... Nc6 {[%clk
0:01:50.9]} 21. Neg5 {[%clk 0:02:20.1]} 21... Bb4 {[%clk 0:01:42.7]} 22. Rf1
{[%clk 0:02:15.1]} 22... c3 {[%clk 0:01:36.3]} 23. Be4 {[%clk 0:02:03.8]} 23...
Nxe5 {[%clk 0:01:08.3]} 24. Nxe6 {[%clk 0:01:59.8]} 24... fxe6 {[%clk
0:01:08.7]} 25. Ng5 {[%clk 0:01:18.8]} 25... Nf6 {[%clk 0:00:57.5]} 26. bxc3
{[%clk 0:01:13.8]} 26... Bxc3 {[%clk 0:00:56]} 27. Bb1 {[%clk 0:01:12.7]} 27...
Nf7 {[%clk 0:00:52.4]} 28. Nxf7 {[%clk 0:01:01.2]} 28... Qxf7 {[%clk 0:00:51]}
29. Qf3 {[%clk 0:00:57.7]} 29... Nd5 {[%clk 0:00:48.6]} 30. Qg3 {[%clk
0:00:53.7]} 30... Bg7 {[%clk 0:00:48.2]} 31. Bg5 {[%clk 0:00:53.4]} 31... Bf6
{[%clk 0:00:48.4]} 32. Bd2 {[%clk 0:00:51.5]} 32... b4 {[%clk 0:00:47.2]} 33.
Bd3 {[%clk 0:00:47.1]} 33... a5 {[%clk 0:00:46.6]} 34. Bc4 {[%clk 0:00:47.5]}
34... Qg7 {[%clk 0:00:42.2]} 35. Rfe1 {[%clk 0:00:46.8]} 35... Qf7 {[%clk
0:00:41.6]} 36. Re2 {[%clk 0:00:44.6]} 36... Nb6 {[%clk 0:00:41.1]} 37. Bb5
{[%clk 0:00:43.5]} 37... Re7 {[%clk 0:00:40.1]} 38. Rde1 {[%clk 0:00:43.4]}
38... Rd5 {[%clk 0:00:38.9]} 39. Bc6 {[%clk 0:00:42.8]} 39... Rd8 {[%clk
0:00:36.7]} 40. Bf4 {[%clk 0:00:40.6]} 40... Nd5 {[%clk 0:00:35.3]} 41. Bd6
{[%clk 0:00:35.1]} 41... Bh4 {[%clk 0:00:24.6]} 42. Bxe7 {[%clk 0:00:30.3]}
42... Bxg3 {[%clk 0:00:24.7]} 43. Bxd8 {[%clk 0:00:31]} 43... Bc7 {[%clk
0:00:24.9]} 44. Bxd5 {[%clk 0:00:29.7]} 44... exd5 {[%clk 0:00:21.6]} 45. Bxc7
{[%clk 0:00:29.6]} 45... Qxc7 {[%clk 0:00:21.4]} 46. Re7 {[%clk 0:00:28.6]}
46... Qd6 {[%clk 0:00:18.6]} 47. Rb7 {[%clk 0:00:27.5]} 47... Qc6 {[%clk
0:00:18.5]} 48. Ree7 {[%clk 0:00:26.4]} 48... Qc1+ {[%clk 0:00:16.9]} 49. Kh2
{[%clk 0:00:25.3]} 49... Qf4+ {[%clk 0:00:17.6]} 50. Kg1 {[%clk 0:00:24.2]}
50... Qc1+ {[%clk 0:00:18.1]} 51. Kh2 {[%clk 0:00:24.7]} 51... Qf4+ {[%clk
0:00:18.6]} 52. Kh1 {[%clk 0:00:24.7]} 52... Qc1+ {[%clk 0:00:19.2]} 53. Kh2
{[%clk 0:00:25.2]} 1/2-1/2

[Event "*** Titled Tuesday Blitz"]
[Site "Chess.com"]
[Date "2021.03.09"]
[Round "1"]
[White "federicosellitti"]
[Black "ApoIogiA"]
[Result "1-0"]
[WhiteElo "2540"]
[BlackElo "2213"]
[TimeControl "180+1"]
[EndTime "10:07:20 PST"]
[Termination "federicosellitti won by resignation"]

1. e4 {[%clk 0:02:55.4]} 1... c5 {[%clk 0:02:58.7]} 2. Nc3 {[%clk 0:02:55.3]}
2... Nc6 {[%clk 0:02:58.4]} 3. g3 {[%clk 0:02:54.9]} 3... g6 {[%clk 0:02:58.6]}
4. Bg2 {[%clk 0:02:54.9]} 4... Bg7 {[%clk 0:02:59.5]} 5. d3 {[%clk 0:02:54.7]}
5... e6 {[%clk 0:03:00.4]} 6. Be3 {[%clk 0:02:54.4]} 6... Nge7 {[%clk
0:03:01.3]} 7. Bxc5 {[%clk 0:02:54]} 7... Qa5 {[%clk 0:02:56.2]} 8. Be3 {[%clk
0:02:44.8]} 8... Bxc3+ {[%clk 0:02:50.9]} 9. bxc3 {[%clk 0:02:45.7]} 9... Qxc3+
{[%clk 0:02:51]} 10. Bd2 {[%clk 0:02:46.4]} 10... Qg7 {[%clk 0:02:39.7]} 11. Ne2
{[%clk 0:02:34.9]} 11... O-O {[%clk 0:02:38.9]} 12. Qc1 {[%clk 0:02:03.1]} 12...
Rd8 {[%clk 0:02:30.6]} 13. O-O {[%clk 0:02:03.1]} 13... e5 {[%clk 0:02:24.1]}
14. Nc3 {[%clk 0:01:14.7]} 14... d6 {[%clk 0:02:16.5]} 15. Bh6 {[%clk
0:01:05.3]} 15... Qh8 {[%clk 0:02:13.1]} 16. f4 {[%clk 0:00:47.8]} 16... f6
{[%clk 0:02:10.1]} 17. f5 {[%clk 0:00:37.8]} 17... gxf5 {[%clk 0:01:14.3]} 18.
exf5 {[%clk 0:00:38.7]} 18... d5 {[%clk 0:01:14.1]} 19. Qa3 {[%clk 0:00:20.3]}
19... Nxf5 {[%clk 0:00:38.7]} 20. Rxf5 {[%clk 0:00:11.8]} 20... Bxf5 {[%clk
0:00:37]} 21. Bxd5+ {[%clk 0:00:12.1]} 21... Rxd5 {[%clk 0:00:36.4]} 22. Nxd5
{[%clk 0:00:13]} 22... Kf7 {[%clk 0:00:19.8]} 23. Rf1 {[%clk 0:00:11.8]} 23...
Kg6 {[%clk 0:00:18.8]} 24. Ne3 {[%clk 0:00:06.9]} 24... Be6 {[%clk 0:00:16.9]}
25. Qd6 {[%clk 0:00:03.8]} 25... Qe8 {[%clk 0:00:15.7]} 26. Bf4 {[%clk
0:00:02.4]} 26... Rd8 {[%clk 0:00:14.5]} 27. Qa3 {[%clk 0:00:01.8]} 27... exf4
{[%clk 0:00:13.6]} 28. gxf4 {[%clk 0:00:02.7]} 28... Kg7 {[%clk 0:00:11.4]} 29.
f5 {[%clk 0:00:02.7]} 29... Bd5 {[%clk 0:00:10.4]} 30. Ng4 {[%clk 0:00:03.2]}
30... Qd7 {[%clk 0:00:07.6]} 31. Qc1 {[%clk 0:00:03.6]} 31... Qd6 {[%clk
0:00:07.6]} 32. Qh6+ {[%clk 0:00:03.8]} 32... Kh8 {[%clk 0:00:07.6]} 33. Nxf6
{[%clk 0:00:03.9]} 33... Rg8+ {[%clk 0:00:06.8]} 34. Nxg8 {[%clk 0:00:04.3]}
34... Kxg8 {[%clk 0:00:07.7]} 35. Qxd6 {[%clk 0:00:04]} 1-0